[Event "MCCT Chessable Masters 2022"]
[Site "Online"]
[Date "2022.05.16"]
[Round "6.7"]
[White "Grandelius, Nils"]
[Black "Jones, Gawain C B"]
[Result "1-0"]
[ECO "C77"]
[WhiteElo "2635"]
[BlackElo "2669"]
[Annotator "TA"]
[PlyCount "73"]
[EventDate "2022.05.19"]
[EventType "tourn"]
[EventCountry "NET"]
[SourceTitle "playchess.com"]
[Source "ChessBase"]
[SourceQuality "1"]
[TimeControl "900+10"]

{[%evp 12,73,10,7,22,25,3,10,22,-16,41,24,17,12,18,-11,11,17,51,19,26,6,9,0,0,0,0,0,-4,0,0,-31,-35,-61,31,35,50,-22,0,-10,33,27,32,44,39,39,39,39,41,39,39,39,42,42,45,8,43,31,149,149,29982,29983,29980,29968]} 1. e4 {[%emt 0:00:00]} e5 {[%emt 0:00:00]} 2. Nf3 {[%emt 0:00:02]} Nc6 {[%emt 0:00:02]} 3. Bb5 {[%emt 0:00:00][%cal Bf1b5,Bb5a4,Ba4b3][%mdl 32]} a6 {[%emt 0:00:00]} 4. Ba4 {[%emt 0:00:03]} Nf6 {[%emt 0:00:03]} 5. d3 {[%emt 0:00:38]} b5 {[%emt 0:00:05]} 6. Bb3 {[%emt 0:00:01]} Bc5 {[%emt 0:00:01]} 7. a4 {[%emt 0:00:18] Black should prevent axb5. 7.c3 is becoming the main line.} Rb8 {[%emt 0:00:05] C77: Ruy Lopez: 3...a6 4 Ba4 Nf6, unusual lines.} 8. Bg5 $5 {[%emt 0:00:21][%mdl 4] Leaves trodden paths.} h6 {[%emt 0:00:21]} 9. Bh4 {[%emt 0:00:01]} d6 {[%emt 0:00:29] The position is equal.} 10. c3 {[%emt 0:00:10]} Bb6 {[%emt 0:02:32]} (10... b4 $11) 11. O-O {[%emt 0:01:21]} g5 {[%emt 0:01:03]} 12. Bg3 {[%emt 0:00:02]} O-O {[%emt 0:00:13] [#]} 13. Re1 $146 {[%emt 0:00:51]} ({Predecessor:} 13. axb5 axb5 14. Na3 Nh7 15. d4 h5 16. h3 h4 17. Bh2 g4 18. hxg4 Bxg4 19. Qd3 exd4 20. Nxd4 {0-1 (29) Sethuraman,S (2644)-Harsha,B (2509) chess24.com INT 2021}) 13... Kg7 {[%emt 0:03:54]} 14. Nbd2 {[%emt 0:01:36]} Nh7 {[%emt 0:01:28]} 15. Nf1 {[%emt 0:02:23]} h5 {[%emt 0:00:08] And now ...h4 would win.} 16. h4 {[%emt 0:00:01]} g4 {[%emt 0:00:21]} 17. N3d2 {[%emt 0:00:02]} Ne7 {[%emt 0:00:57][%cal Bc6e7,Be7f5,Bf5h4][%mdl 32]} 18. Ne3 {[%emt 0:04:22]} Bxe3 {[%emt 0:00:42]} 19. Rxe3 {[%emt 0:00:01]} f5 {[%emt 0:00:12]} 20. exf5 $1 {[%emt 0:00:00]} Nxf5 {[%emt 0:00:03]} 21. Re1 {[%emt 0:00:00][%cal Od3d4]} Nxh4 {[%emt 0:00:43] Hoping for ...bxa4.} 22. d4 $1 {[%emt 0:00:30] [#]} exd4 {[%emt 0:02:27]} (22... Nxg2 $1 $15 23. Kxg2 h4) 23. Ne4 $14 {[%emt 0:00:46]} Nf5 {[%emt 0:00:02]} 24. cxd4 {[%emt 0:00:03]} ({Better is} 24. Bf4 $14) 24... bxa4 {[%emt 0:01:38]} 25. Rxa4 {[%emt 0:00:09]} Ng5 {[%emt 0:00:17]} 26. Bf4 {[%emt 0:00:31] A strong pair of Bishops.} Nxe4 {[%emt 0:00:18]} 27. Rxe4 {[%emt 0:00:00]} Bd7 {[%emt 0:00:29]} 28. Rxa6 {[%emt 0:00:29]} Re8 {[%emt 0:00:10]} 29. Rxe8 {[%emt 0:00:56]} Qxe8 {[%emt 0:00:02]} 30. Ra7 {[%emt 0:00:17]} Qe4 {[%emt 0:00:57]} (30... Rxb3 31. Qxb3 Qe1+ 32. Kh2 Nxd4 33. Qe3 Qxe3 34. Bxe3 $18) 31. Rxc7 {[%emt 0:00:47]} Qxf4 {[%emt 0:00:02]} 32. Rxd7+ {[%emt 0:00:00]} Kh6 $1 {[%emt 0:00:25] [#]} 33. Qe1 $1 {[%emt 0:02:46][%cal Od7f7]} Kg5 {[%emt 0:00:14]} (33... g3 34. fxg3) 34. g3 $36 {[%emt 0:00:10][%mdl 2048] Black is under pressure.} Qxd4 {[%emt 0:00:15]} (34... Nxg3 $1 $14 35. Rf7 (35. Qe7+ Qf6 $11) 35... Re8) 35. Bc2 $16 {[%emt 0:00:24] Rf7 is the strong threat.} ({Don't do} 35. Qc1+ Kf6 36. Rf7+ Kg6 $16) 35... Qf6 {[%emt 0:00:11][%mdl 8192] Inhibits Rf7.} (35... Rxb2 $2 36. Bxf5 Rb3 37. Qe7+ Qf6 {[#]} 38. Qe8 $1 (38. Qh7 Rxg3+ 39. fxg3 Qd4+ 40. Kh2 Qd2+ 41. Kh1 Qd1+ 42. Kh2 Qd2+ 43. Kh1 Qd1+ 44. Kh2 Qd2+ $11) 38... Rxg3+ 39. fxg3 $18) (35... Nxg3 $16 36. Qe7+ Qf6) 36. Qd2+ {[%emt 0:00:07]} Kg6 {[%emt 0:00:04]} 37. Rxd6 {[%emt 0:00:05] Weighted Error Value: White=0.12 (very precise) /Black=0.30} 1-0

[Event "MCCT Chessable Masters 2022"]
[Site "Online"]
[Date "2022.05.16"]
[Round "6.8"]
[White "Praggnanandhaa R"]
[Black "Harikrishna, Pentala"]
[Result "1/2-1/2"]
[ECO "C77"]
[WhiteElo "2642"]
[BlackElo "2705"]
[Annotator "TA"]
[PlyCount "84"]
[EventDate "2022.05.19"]
[EventType "tourn"]
[EventCountry "NET"]
[SourceTitle "playchess.com"]
[Source "ChessBase"]
[SourceQuality "1"]
[TimeControl "900+10"]

{[%evp 10,84,17,14,10,10,9,8,12,7,7,9,9,6,0,6,5,0,18,5,5,7,0,-19,-6,-23,-20,-23,-33,-41,0,-55,-56,-56,-62,-47,-59,-45,-15,-27,0,0,0,0,0,-8,-10,-10,0,0,0,0,0,0,0,0,0,0,0,0,0,0,0,0,0,0,0,0,0,0,0,0,0,0,0,0,0]} 1. e4 {[%emt 0:00:00]} e5 {[%emt 0:00:00]} 2. Nf3 {[%emt 0:00:02]} Nc6 {[%emt 0:00:02]} 3. Bb5 {[%emt 0:00:01]} a6 {[%emt 0:00:01]} 4. Ba4 {[%emt 0:00:01]} Nf6 {[%emt 0:00:01]} 5. d3 {[%emt 0:00:00]} d6 {[%emt 0:00:01]} 6. c4 {[%emt 0:00:07]} Bg4 {[%emt 0:00:02] C77: Ruy Lopez: 3...a6 4 Ba4 Nf6, unusual lines.} 7. h3 {[%emt 0:00:04]} Bxf3 {[%emt 0:00:01]} 8. Qxf3 {[%emt 0:00:06]} Be7 {[%emt 0:00:01]} 9. Nc3 {[%emt 0:00:28]} O-O {[%emt 0:00:04]} 10. Be3 {[%emt 0:00:02]} Nd4 {[%emt 0:00:12]} 11. Bxd4 {[%emt 0:03:03]} exd4 {[%emt 0:00:02]} 12. Ne2 {[%emt 0:00:00]} c6 {[%emt 0:00:02] [#] aiming for ...Qa5+.} 13. O-O {[%emt 0:00:06]} b5 {[%emt 0:00:36]} 14. Bb3 {[%emt 0:00:22]} Qb6 {[%emt 0:00:02] [#]} 15. cxb5 $146 {[%emt 0:04:41]} ({Predecessor:} 15. Ng3 g6 16. c5 dxc5 17. e5 Nd5 18. Bxd5 cxd5 19. Qxd5 c4 20. dxc4 Rfd8 21. c5 Rxd5 22. cxb6 Rxe5 {0-1 (50) Gross,S (2330)-Davies,N (2505) Budapest 1993}) 15... axb5 {[%emt 0:00:05]} 16. Ng3 {[%emt 0:00:35]} g6 {[%emt 0:00:22] Inhibits Nf5.} 17. Qe2 {[%emt 0:00:06]} Nd7 {[%emt 0:01:53]} 18. f4 {[%emt 0:00:03]} Nc5 {[%emt 0:00:08]} 19. Bc2 {[%emt 0:00:15]} Rae8 {[%emt 0:02:28]} 20. Qg4 {[%emt 0:01:51] [#]} ({White should try} 20. b4 $11 Na4 21. Bxa4 bxa4 22. a3) 20... Nxe4 $1 $15 {[%emt 0:00:40]} 21. dxe4 {[%emt 0:01:35] Strongly threatening Bd3.} d3+ $1 {[%emt 0:00:12]} 22. Kh2 {[%emt 0:00:01]} dxc2 {[%emt 0:00:03]} 23. Rac1 {[%emt 0:00:01]} Qc5 {[%emt 0:01:03]} 24. Qe2 {[%emt 0:00:21]} Qc4 {[%emt 0:02:38]} 25. Rxc2 {[%emt 0:01:46] The position is equal.} Qxe2 {[%emt 0:00:03]} 26. Nxe2 {[%emt 0:00:03]} Bf6 {[%emt 0:00:15]} 27. Rxc6 {[%emt 0:00:04]} Rxe4 {[%emt 0:00:56]} 28. Nc3 {[%emt 0:00:30]} Rc4 {[%emt 0:01:54]} 29. Rxd6 {[%emt 0:01:23]} Bxc3 {[%emt 0:00:02]} 30. bxc3 {[%emt 0:00:01]} Rxc3 $11 {[%emt 0:00:01][%mdl 4096] Endgame KRR-KRR} 31. Rf2 {[%emt 0:00:07]} Ra3 {[%emt 0:00:10]} 32. f5 {[%emt 0:00:17]} gxf5 {[%emt 0:01:05]} 33. Rxf5 {[%emt 0:01:12]} Rxa2 {[%emt 0:00:11]} 34. Rxb5 {[%emt 0:00:02]} Kh8 {[%emt 0:00:04]} 35. Rg5 {[%emt 0:00:08]} Rg8 {[%emt 0:00:03]} 36. Rxg8+ {[%emt 0:00:03]} Kxg8 {[%emt 0:00:00] KR-KR} 37. Rd3 {[%emt 0:00:04]} Kg7 {[%emt 0:00:05]} 38. Rg3+ {[%emt 0:00:01]} Kf6 {[%emt 0:00:05]} 39. Rf3+ {[%emt 0:00:00]} Kg6 {[%emt 0:00:01]} 40. Rg3+ {[%emt 0:00:01]} Kf6 {[%emt 0:00:01]} 41. Rf3+ {[%emt 0:00:00]} Kg6 {[%emt 0:00:00]} 42. Rg3+ {[%emt 0:00:01]} Kf6 {[%emt 0:00:01] Weighted Error Value: White=0.05 (flawless) /Black=0.04 (flawless)} 1/2-1/2

[Event "MCCT Chessable Masters 2022"]
[Site "Online"]
[Date "2022.05.16"]
[Round "7.1"]
[White "Harikrishna, Pentala"]
[Black "Carlsen, Magnus"]
[Result "1/2-1/2"]
[ECO "B10"]
[WhiteElo "2705"]
[BlackElo "2864"]
[Annotator "TA"]
[PlyCount "89"]
[EventDate "2022.05.19"]
[EventType "tourn"]
[EventCountry "NET"]
[SourceTitle "playchess.com"]
[Source "ChessBase"]
[SourceQuality "1"]
[TimeControl "900+10"]

{[%evp 9,89,2,36,27,27,41,35,28,20,24,17,12,0,-39,-32,-28,-26,-38,-35,-47,-43,-98,-101,-87,-11,-14,-15,-31,-17,-214,-228,-220,-226,-234,-226,-237,-222,-221,-233,-329,-322,-552,-552,-523,-51,-180,-177,-166,-166,-168,-110,-139,-112,-99,-100,-98,-62,-68,-5,-156,-156,-156,-156,-156,-156,-239,-156,-156,-156,-156,-156,-156,-156,-156,-156,-156,-156,-239,-239,-239,-239,-239]} 1. e4 {[%emt 0:00:00]} c6 {[%emt 0:00:00]} 2. Nf3 {[%emt 0:00:03]} d5 {[%emt 0:00:02]} 3. d3 {[%emt 0:00:01][%cal Bd2d3,Bd3d4][%mdl 32]} g6 {[%emt 0:00:38]} 4. e5 {[%emt 0:00:08]} c5 {[%emt 0:00:10]} 5. d4 {[%emt 0:01:13]} Nc6 {[%emt 0:01:12]} 6. dxc5 {[%emt 0:00:17] B10: Caro-Kann: 2 d3 and 2 c4.} Bg4 {[%emt 0:00:38] [#]} 7. Nbd2 $146 {[%emt 0:00:58]} ({Predecessor:} 7. Bb5 Rc8 8. O-O e6 9. b4 Bg7 10. Bxc6+ Rxc6 11. Re1 b6 12. cxb6 Qxb6 13. c3 {½-½ (68) Rakotomaharo,F (2422)-Sevian,S (2660) Chess.com INT 2020}) 7... e6 {[%emt 0:02:33]} 8. h3 {[%emt 0:01:29] White is slightly better.} Bxf3 {[%emt 0:00:03]} 9. Nxf3 {[%emt 0:00:02]} Bxc5 {[%emt 0:00:01]} 10. Bd3 {[%emt 0:00:15]} Qc7 {[%emt 0:00:02]} 11. Qe2 {[%emt 0:00:19]} Nd4 $1 {[%emt 0:00:06]} 12. Nxd4 {[%emt 0:00:56]} Bxd4 {[%emt 0:00:00]} 13. f4 {[%emt 0:02:36]} Ne7 {[%emt 0:00:16]} 14. Bb5+ {[%emt 0:03:12]} Kf8 {[%emt 0:00:05]} 15. c3 {[%emt 0:02:08] [#]} ({Better is} 15. Rf1 $15) 15... Bxc3+ $1 $17 {[%emt 0:00:52]} 16. bxc3 {[%emt 0:00:02] [#] Hoping for 0-0.} Qxc3+ {[%emt 0:00:01]} (16... a6 $1 $17 17. Bd2 axb5 18. Qxb5 Kg7) 17. Qd2 $11 {[%emt 0:00:02]} Qxa1 {[%emt 0:00:06]} 18. O-O $1 {[%emt 0:00:02] aiming for Ba3.} Rc8 {[%emt 0:00:53]} 19. f5 $2 {[%emt 0:01:02] [#]} (19. Bd7 $1 $11 Qc3 20. Bxc8 Qxd2 21. Bxd2 Nxc8 22. Rc1) 19... Rxc1 $1 $19 {[%emt 0:02:10]} 20. Rxc1 {[%emt 0:00:05]} Qxe5 {[%emt 0:00:04]} 21. fxe6 {[%emt 0:00:07]} Qxe6 {[%emt 0:02:28]} 22. Qd4 {[%emt 0:01:10]} Rg8 {[%emt 0:00:12]} 23. Qxa7 {[%emt 0:01:02]} Kg7 {[%emt 0:00:03]} 24. Rc7 {[%emt 0:01:10]} (24. Qd4+ {is a better defense.} f6 25. Qc3) 24... Nf5 {[%emt 0:03:12]} 25. Qxb7 $2 {[%emt 0:00:19]} (25. Qf2 {keeps fighting.}) 25... Qe3+ {[%emt 0:01:02]} 26. Kh1 {[%emt 0:00:02]} Ng3+ $2 {[%emt 0:00:50]} (26... Qe1+ 27. Kh2 Qe5+ 28. Kh1 Qe1+ 29. Kh2 Rf8) 27. Kh2 {[%emt 0:00:01]} Qf4 {[%emt 0:00:00]} 28. Kg1 {[%emt 0:00:24]} h5 {[%emt 0:00:59][%cal Og8e8] Strongly threatening ...Re8!} 29. Re7 {[%emt 0:00:21] Against Re8} h4 {[%emt 0:01:03]} (29... Qf6 $19 {...Nf5 is the strong threat.} 30. Bd3 h4) 30. Qc7 $17 {[%emt 0:00:08]} Qxc7 {[%emt 0:00:17]} 31. Rxc7 {[%emt 0:00:02][%mdl 4096] Endgame KRB-KRN} Kf6 {[%emt 0:00:01]} 32. a4 {[%emt 0:00:09]} Ne4 {[%emt 0:00:01]} 33. Bc6 {[%emt 0:00:32]} Rb8 {[%emt 0:00:04]} (33... Ke6 $15 34. Bb7 Nd6) 34. Rxf7+ $2 {[%emt 0:00:17]} Kxf7 {[%emt 0:00:04] Black is clearly better.} 35. Bxd5+ {[%emt 0:00:01]} Kf6 {[%emt 0:00:01] ( -> ...Rb1+)} 36. Bxe4 {[%emt 0:00:00] KR-KB} Rb3 {[%emt 0:00:05]} 37. Kh2 {[%emt 0:00:06]} (37. Bc6 $17) 37... Ra3 {[%emt 0:00:01]} 38. Bc6 {[%emt 0:00:01]} Ke5 {[%emt 0:00:00]} 39. Be8 {[%emt 0:00:03]} g5 {[%emt 0:00:01]} 40. Bc6 {[%emt 0:00:01]} Kd4 {[%emt 0:00:00]} 41. Kg1 {[%emt 0:00:06]} Ke3 {[%emt 0:00:01]} 42. Kh2 {[%emt 0:00:05]} Kf2 {[%emt 0:00:01]} 43. Bd5 {[%emt 0:00:25]} (43. Bb5 $17) 43... Rxa4 $19 {[%emt 0:00:01]} 44. Bc6 {[%emt 0:00:01]} Rd4 {[%emt 0:00:30]} 45. Bb7 {[%emt 0:00:01] Weighted Error Value: White=0.30/Black=0.26 (precise)} 1/2-1/2

[Event "MCCT Chessable Masters 2022"]
[Site "Online"]
[Date "2022.05.16"]
[Round "7.2"]
[White "Jones, Gawain C B"]
[Black "Praggnanandhaa R"]
[Result "0-1"]
[ECO "B21"]
[WhiteElo "2669"]
[BlackElo "2642"]
[Annotator "TA"]
[PlyCount "62"]
[EventDate "2022.05.19"]
[EventType "tourn"]
[EventCountry "NET"]
[SourceTitle "playchess.com"]
[Source "ChessBase"]
[SourceQuality "1"]
[TimeControl "900+10"]

{[%evp 9,62,-7,0,-8,14,0,0,0,0,-7,0,0,-14,-79,-57,-343,-159,-250,-258,-347,-359,-350,-338,-376,-374,-357,-356,-420,-323,-319,-302,-309,-294,-511,-512,-507,-498,-507,-503,-500,-495,-535,-524,-522,-515,-515,-514,-623,-620,-583,-527,-622,-606,-687,-616]} 1. e4 {[%emt 0:00:00]} c5 {[%emt 0:00:00]} 2. Be2 {[%emt 0:00:02]} Nc6 {[%emt 0:00:22]} 3. d3 {[%emt 0:00:02]} g6 {[%emt 0:00:14]} 4. f4 {[%emt 0:00:02]} Bg7 {[%emt 0:00:01]} 5. Nf3 {[%emt 0:00:01]} Nf6 {[%emt 0:00:27]} 6. O-O {[%emt 0:00:03] B21: Sicilian: 2 f4 and Morra Gambit.} O-O {[%emt 0:00:03]} 7. Qe1 {[%emt 0:00:30]} d5 {[%emt 0:00:32]} 8. Nc3 {[%emt 0:00:07] The position is equal.} b6 {[%emt 0:01:40] [#]} 9. Bd2 $146 {[%emt 0:00:23]} ({Predecessor:} 9. Qh4 dxe4 10. dxe4 Nd4 11. Nxd4 cxd4 12. Rd1 Qc7 13. Nb5 Qc5 14. b4 Qxc2 15. Rd2 Qxe4 {0-1 (38) De Castro,O-Bologan,V (2585) Philadelphia 1994}) 9... dxe4 {[%emt 0:02:32]} 10. dxe4 {[%emt 0:00:04]} Nd4 {[%emt 0:00:01]} 11. Bd3 {[%emt 0:02:59] [#]} (11. Rd1 $11) 11... c4 $1 $17 {[%emt 0:00:58] Black is more active.} 12. Bxc4 {[%emt 0:01:30][%mdl 8192]} (12. Nxd4 $1 $15 cxd3 13. Nc6) 12... Nxc2 {[%emt 0:00:07]} (12... Nxf3+ $19 13. gxf3 Qd4+ 14. Rf2 Qxc4) 13. Qh4 {[%emt 0:00:02]} (13. Qe2 $17 Nxa1 14. Rxa1) 13... Nxa1 $19 {[%emt 0:00:14]} 14. f5 {[%emt 0:00:25]} Nc2 {[%emt 0:03:35][%cal Ba1c2,Bc2d4,Bd4f3][%mdl 32]} (14... gxf5 $2 15. e5 Nc2 16. exf6 Bxf6 17. Qg3+ Kh8 18. Bg5 $19) 15. fxg6 {[%emt 0:01:50]} hxg6 {[%emt 0:00:29]} 16. e5 {[%emt 0:00:02] [#]} Bb7 $1 {[%emt 0:01:31]} 17. exf6 {[%emt 0:04:19]} exf6 {[%emt 0:00:19] Hoping for ...Bxf3.} ({Wrong is} 17... Bxf6 $2 18. Qh6 Bxf3 19. Qxg6+ Bg7 20. Qxc2 $19) 18. Ne4 {[%emt 0:00:22]} Nd4 {[%emt 0:01:37]} ({Weaker is} 18... Re8 19. Neg5 Bxf3 20. Qh7+ (20. Bxf7+ Kf8 $15) 20... Kf8 21. Nxf3 $15) 19. Nfg5 {[%emt 0:02:19]} fxg5 {[%emt 0:00:03]} 20. Nxg5 {[%emt 0:00:30][%csl Gg5][%cal Rh4h7]} Nf3+ $1 {[%emt 0:00:12]} 21. Rxf3 $2 {[%emt 0:00:51]} (21. gxf3 Qd4+ 22. Qxd4 Bxd4+ 23. Kg2) 21... Qd4+ {[%emt 0:00:14] Black is clearly winning.} 22. Qxd4 {[%emt 0:00:03]} Bxd4+ {[%emt 0:00:02]} 23. Be3 {[%emt 0:00:00]} Bxf3 {[%emt 0:00:28]} 24. Bxd4 {[%emt 0:00:01]} Bb7 {[%emt 0:01:05]} 25. Bf6 {[%emt 0:00:02]} Rac8 {[%emt 0:00:06]} 26. Bb3 {[%emt 0:00:02]} Rc1+ {[%emt 0:00:26]} 27. Kf2 {[%emt 0:00:01]} Rc5 {[%emt 0:00:01] Strongly threatening ...Rf5+.} 28. g4 {[%emt 0:00:31] Against Rf5+} Bd5 {[%emt 0:00:08]} 29. Bd1 {[%emt 0:00:14]} Rc6 {[%emt 0:00:07]} 30. Bd4 {[%emt 0:00:17]} f6 {[%emt 0:00:03]} 31. Nh3 {[%emt 0:00:26]} g5 {[%emt 0:00:03] White did not feel at home in the position after the opening.  Weighted Error Value: White=0.53/Black=0.17 (very precise)} 0-1

[Event "MCCT Chessable Masters 2022"]
[Site "Online"]
[Date "2022.05.16"]
[Round "7.3"]
[White "Anton Guijarro, David"]
[Black "Grandelius, Nils"]
[Result "1/2-1/2"]
[ECO "B50"]
[WhiteElo "2691"]
[BlackElo "2635"]
[Annotator "TA"]
[PlyCount "76"]
[EventDate "2022.05.19"]
[EventType "tourn"]
[EventCountry "NET"]
[SourceTitle "playchess.com"]
[Source "ChessBase"]
[SourceQuality "1"]
[TimeControl "900+10"]

{[%evp 11,76,0,0,0,-10,0,0,0,12,15,18,0,5,-1,12,0,29,29,58,51,38,27,32,32,37,44,26,0,0,-5,-7,-6,-4,-5,0,0,0,0,9,9,9,0,0,0,0,0,0,0,0,0,0,0,0,0,0,0,6,6,6,6,7,0,6,0,7,0,5]} 1. e4 {[%emt 0:00:00]} c5 {[%emt 0:00:00]} 2. Nf3 {[%emt 0:00:03]} d6 {[%emt 0:00:02]} 3. c3 {[%emt 0:00:03]} Nf6 {[%emt 0:00:05]} 4. Be2 {[%emt 0:00:02]} g6 {[%emt 0:00:19]} 5. O-O {[%emt 0:00:04]} Bg7 {[%emt 0:00:01]} 6. Bb5+ {[%emt 0:00:03]} Nc6 {[%emt 0:00:30]} 7. d4 {[%emt 0:00:06] B50: Sicilian: 2...d6, Miscellaneous.} O-O {[%emt 0:00:03]} 8. d5 {[%emt 0:00:04]} Na5 {[%emt 0:00:12]} 9. Re1 {[%emt 0:00:20]} a6 {[%emt 0:00:23]} 10. Bf1 {[%emt 0:00:21]} b5 {[%emt 0:00:09]} 11. Bf4 {[%emt 0:01:04] [#]} Re8 $146 {[%emt 0:00:36]} ({Predecessor:} 11... Bg4 12. Nbd2 b4 13. cxb4 cxb4 14. Rb1 Qb6 15. h3 Bd7 16. Be3 Qb7 17. Nd4 Rfc8 {1-0 (38) Tregubov,P (2588)-Potkin,V (2583) Moscow 2019}) 12. h3 {[%emt 0:02:20]} h6 {[%emt 0:01:26]} 13. Bh2 {[%emt 0:02:03]} Qb6 {[%emt 0:01:04]} 14. Nbd2 {[%emt 0:01:23]} e6 {[%emt 0:00:33]} 15. b4 {[%emt 0:00:49]} Nb7 {[%emt 0:00:03]} 16. dxe6 {[%emt 0:00:53]} Bxe6 {[%emt 0:00:41]} 17. a4 {[%emt 0:00:47]} Nd7 {[%emt 0:01:05]} 18. axb5 {[%emt 0:01:35]} axb5 {[%emt 0:00:35]} 19. Rxa8 {[%emt 0:00:00]} Rxa8 {[%emt 0:00:02] The position is equal.} 20. e5 {[%emt 0:00:13]} cxb4 {[%emt 0:05:50]} ({Much less strong is} 20... Ra2 21. exd6 Nxd6 {[#]} 22. Rxe6 $1 fxe6 23. Qb3 $14) (20... dxe5 {seems wilder.} 21. Nxe5 cxb4 22. cxb4 Ra2) 21. cxb4 {[%emt 0:00:07]} dxe5 {[%emt 0:00:31]} 22. Nxe5 {[%emt 0:00:27]} Nxe5 {[%emt 0:00:06]} 23. Bxe5 {[%emt 0:00:02]} Bxe5 {[%emt 0:00:41]} ({Don't play} 23... Ra2 24. Bxg7 Kxg7 25. Ne4 $16) 24. Rxe5 {[%emt 0:00:00]} Nd6 {[%emt 0:00:37]} 25. Qf3 {[%emt 0:03:16]} Ra2 {[%emt 0:00:38] [#]} 26. Rxe6 $1 {[%emt 0:00:33]} Rxd2 {[%emt 0:02:01]} 27. Re7 {[%emt 0:02:14]} Qd4 {[%emt 0:00:23]} 28. Rd7 {[%emt 0:00:11]} Kg7 {[%emt 0:00:27]} 29. Bxb5 {[%emt 0:00:36]} Qxb4 {[%emt 0:00:18]} 30. Bf1 {[%emt 0:00:06]} Qd4 {[%emt 0:00:06]} 31. g3 {[%emt 0:00:07]} Qf6 {[%emt 0:00:10]} 32. Bg2 {[%emt 0:00:14]} Qxf3 {[%emt 0:00:17]} 33. Bxf3 {[%emt 0:00:01]} Ne4 {[%emt 0:00:01]} 34. Rxd2 {[%emt 0:00:03]} Nxd2 $11 {[%emt 0:00:00] KB-KN} 35. Be2 {[%emt 0:00:04]} Ne4 {[%emt 0:00:02]} 36. Bf3 {[%emt 0:00:04]} Nd2 {[%emt 0:00:01]} 37. Be2 {[%emt 0:00:01]} Ne4 {[%emt 0:00:00]} 38. Bf3 {[%emt 0:00:01]} Nd2 {[%emt 0:00:01] Weighted Error Value: White=0.03 (flawless) /Black=0.03 (flawless)} 1/2-1/2